[Event "*** Titled Tuesday Blitz"]
[Site "Chess.com"]
[Date "2018.09.04"]
[Round "4"]
[White "Caterpiller35"]
[Black "Fighter008"]
[Result "1-0"]
[WhiteElo "2302"]
[BlackElo "2429"]
[TimeControl "180+2"]
[EndTime "14:24:29 PDT"]
[Termination "Caterpiller35 won by resignation"]

1. d4 {[%clk 0:02:58.2]} 1... Nf6 {[%clk 0:03:00.5]} 2. Bf4 {[%clk 0:02:57]}
2... g6 {[%clk 0:03:01.2]} 3. Nc3 {[%clk 0:02:56.1]} 3... d5 {[%clk 0:03:01.3]}
4. e3 {[%clk 0:02:57]} 4... Bg7 {[%clk 0:03:01.9]} 5. h4 {[%clk 0:02:57.9]} 5...
h5 {[%clk 0:02:56.5]} 6. Nf3 {[%clk 0:02:56.2]} 6... O-O {[%clk 0:02:56.3]} 7.
Nb5 {[%clk 0:02:53.8]} 7... Na6 {[%clk 0:02:56.6]} 8. Ne5 {[%clk 0:02:50]} 8...
c6 {[%clk 0:02:57.2]} 9. Nc3 {[%clk 0:02:51]} 9... Nc7 {[%clk 0:02:58.2]} 10.
Be2 {[%clk 0:02:51.6]} 10... Nce8 {[%clk 0:02:51.5]} 11. g4 {[%clk 0:02:51.6]}
11... hxg4 {[%clk 0:02:52.5]} 12. Nxg4 {[%clk 0:02:42.6]} 12... Nxg4 {[%clk
0:02:51.9]} 13. Bxg4 {[%clk 0:02:43.4]} 13... Bxg4 {[%clk 0:02:53.4]} 14. Qxg4
{[%clk 0:02:44.3]} 14... Nf6 {[%clk 0:02:55]} 15. Qf3 {[%clk 0:02:44.4]} 15...
Nh5 {[%clk 0:02:54.9]} 16. O-O-O {[%clk 0:02:43.1]} 16... b5 {[%clk 0:02:55.4]}
17. Rdg1 {[%clk 0:02:43.3]} 17... Qa5 {[%clk 0:02:52.4]} 18. Be5 {[%clk
0:02:40.8]} 18... b4 {[%clk 0:02:52.6]} 19. Ne2 {[%clk 0:02:33.8]} 19... Qxa2
{[%clk 0:02:44.8]} 20. Qxh5 {[%clk 0:02:10]} 20... gxh5 {[%clk 0:02:44.8]} 21.
Rxg7+ {[%clk 0:02:10.2]} 21... Kh8 {[%clk 0:02:45.9]} 22. Rxf7+ {[%clk 0:01:32]}
22... Kg8 {[%clk 0:02:44.5]} 23. Rg7+ {[%clk 0:01:32.3]} 23... Kh8 {[%clk
0:02:45.5]} 24. Rhg1 {[%clk 0:01:17]} 24... Rf6 {[%clk 0:02:41.3]} 25. R7g5
{[%clk 0:00:44]} 25... Kh7 {[%clk 0:01:55.5]} 26. Rxh5+ {[%clk 0:00:24.7]} 26...
Rh6 {[%clk 0:01:55.5]} 27. Rg7+ {[%clk 0:00:24.5]} 1-0

[Event "*** Titled Tuesday Blitz"]
[Site "Chess.com"]
[Date "2018.09.04"]
[Round "4"]
[White "maziarbagheri"]
[Black "twitchTriniCupid"]
[Result "1-0"]
[WhiteElo "2312"]
[BlackElo "2203"]
[TimeControl "180+2"]
[EndTime "14:24:42 PDT"]
[Termination "maziarbagheri won by resignation"]

1. Nf3 {[%clk 0:02:28.6]} 1... d5 {[%clk 0:02:59.4]} 2. d4 {[%clk 0:02:28.9]}
2... Nf6 {[%clk 0:02:59.1]} 3. c4 {[%clk 0:02:30.1]} 3... c6 {[%clk 0:02:59.6]}
4. Nc3 {[%clk 0:02:30.6]} 4... e6 {[%clk 0:02:57.2]} 5. Bg5 {[%clk 0:02:30.7]}
5... Nbd7 {[%clk 0:02:57.8]} 6. e3 {[%clk 0:02:31.8]} 6... Be7 {[%clk
0:02:56.3]} 7. Rc1 {[%clk 0:02:32.6]} 7... h6 {[%clk 0:02:53]} 8. Bh4 {[%clk
0:02:31.2]} 8... Qa5 {[%clk 0:02:51.1]} 9. Bd3 {[%clk 0:02:29.2]} 9... g5 {[%clk
0:02:36.7]} 10. Bg3 {[%clk 0:02:28]} 10... dxc4 {[%clk 0:02:25.3]} 11. Bxc4
{[%clk 0:02:27.4]} 11... Ne4 {[%clk 0:02:22.4]} 12. O-O {[%clk 0:02:14.4]} 12...
Nxg3 {[%clk 0:02:09.2]} 13. hxg3 {[%clk 0:02:14]} 13... b5 {[%clk 0:02:06]} 14.
Bb3 {[%clk 0:02:13.6]} 14... Bb7 {[%clk 0:02:04.1]} 15. Ne4 {[%clk 0:02:12.4]}
15... O-O-O {[%clk 0:01:40.9]} 16. d5 {[%clk 0:01:58]} 16... exd5 {[%clk
0:01:24.7]} 17. Qxd5 {[%clk 0:01:52.5]} 17... Kb8 {[%clk 0:00:59]} 18. Qxf7
{[%clk 0:01:50.8]} 18... Rhe8 {[%clk 0:00:56.5]} 19. Rfd1 {[%clk 0:01:44.3]}
19... g4 {[%clk 0:00:30.2]} 20. Nd4 {[%clk 0:01:37.3]} 20... Ne5 {[%clk
0:00:30.2]} 21. Qf4 {[%clk 0:01:31.1]} 21... Bg5 {[%clk 0:00:28.4]} 22. Nxg5
{[%clk 0:01:30.9]} 22... hxg5 {[%clk 0:00:28.9]} 23. Qxg5 {[%clk 0:01:26.9]}
23... Qc7 {[%clk 0:00:25.1]} 24. Ne6 {[%clk 0:01:23.2]} 24... Rxd1+ {[%clk
0:00:25.2]} 25. Rxd1 {[%clk 0:01:24.6]} 25... Qe7 {[%clk 0:00:22.7]} 26. Qxe5+
{[%clk 0:01:24.9]} 1-0

[Event "*** Titled Tuesday Blitz"]
[Site "Chess.com"]
[Date "2018.09.04"]
[Round "4"]
[White "LordIron"]
[Black "Polish_fighter3000"]
[Result "0-1"]
[WhiteElo "2247"]
[BlackElo "2908"]
[TimeControl "180+2"]
[EndTime "14:24:47 PDT"]
[Termination "Polish_fighter3000 won by resignation"]

1. d4 {[%clk 0:03:01.9]} 1... Nf6 {[%clk 0:03:00.5]} 2. Nf3 {[%clk 0:02:59.4]}
2... e6 {[%clk 0:03:00.4]} 3. g3 {[%clk 0:02:57.6]} 3... b5 {[%clk 0:03:00.3]}
4. Bg2 {[%clk 0:02:59.5]} 4... Bb7 {[%clk 0:03:01.5]} 5. O-O {[%clk 0:03:00.9]}
5... Be7 {[%clk 0:03:02.1]} 6. a4 {[%clk 0:03:02.8]} 6... b4 {[%clk 0:03:02.9]}
7. c4 {[%clk 0:03:04.4]} 7... bxc3 {[%clk 0:03:03.9]} 8. bxc3 {[%clk 0:03:02]}
8... c5 {[%clk 0:03:04.9]} 9. Ba3 {[%clk 0:02:59.9]} 9... O-O {[%clk 0:03:05.6]}
10. Nbd2 {[%clk 0:02:58.2]} 10... Na6 {[%clk 0:02:57.8]} 11. Nb3 {[%clk
0:02:42.7]} 11... Rc8 {[%clk 0:02:54.5]} 12. dxc5 {[%clk 0:02:27.1]} 12... Nxc5
{[%clk 0:02:48.8]} 13. Nxc5 {[%clk 0:02:29]} 13... Bxc5 {[%clk 0:02:49.6]} 14.
Bxc5 {[%clk 0:02:21.4]} 14... Rxc5 {[%clk 0:02:51.5]} 15. Qd4 {[%clk 0:02:10.5]}
15... Qc7 {[%clk 0:02:53]} 16. Rab1 {[%clk 0:02:12]} 16... Be4 {[%clk
0:02:53.6]} 17. Rb3 {[%clk 0:01:48]} 17... Rc8 {[%clk 0:02:34.3]} 18. Nh4 {[%clk
0:01:10.6]} 18... Rc4 {[%clk 0:02:30]} 19. Qe3 {[%clk 0:00:43.4]} 19... Nd5
{[%clk 0:02:29.1]} 20. Qxe4 {[%clk 0:00:44.6]} 20... Rxe4 {[%clk 0:02:29.4]} 21.
Bxe4 {[%clk 0:00:46.5]} 21... Nxc3 {[%clk 0:02:29.8]} 22. Rb7 {[%clk 0:00:44.6]}
22... Qe5 {[%clk 0:02:23.1]} 23. Bd3 {[%clk 0:00:40.6]} 23... Nxe2+ {[%clk
0:02:19.2]} 24. Bxe2 {[%clk 0:00:38]} 24... Qxe2 {[%clk 0:02:21.1]} 25. Rxd7
{[%clk 0:00:38.9]} 25... g5 {[%clk 0:02:21]} 26. Ng2 {[%clk 0:00:36.5]} 26... a5
{[%clk 0:02:22.3]} 27. h4 {[%clk 0:00:29.9]} 27... h6 {[%clk 0:02:22.1]} 28.
hxg5 {[%clk 0:00:22.3]} 28... hxg5 {[%clk 0:02:24]} 29. Ne3 {[%clk 0:00:23.6]}
29... Qf3 {[%clk 0:02:09.7]} 30. Rfd1 {[%clk 0:00:19.4]} 30... Kg7 {[%clk
0:02:09.8]} 31. R7d4 {[%clk 0:00:10.3]} 31... Rh8 {[%clk 0:02:05]} 32. Ng2
{[%clk 0:00:11]} 32... Qh5 {[%clk 0:02:06.3]} 0-1

[Event "*** Titled Tuesday Blitz"]
[Site "Chess.com"]
[Date "2018.09.04"]
[Round "4"]
[White "HonzaVykouk"]
[Black "champ2005"]
[Result "1-0"]
[WhiteElo "2558"]
[BlackElo "2743"]
[TimeControl "180+2"]
[EndTime "14:24:53 PDT"]
[Termination "HonzaVykouk won by resignation"]

1. e4 {[%clk 0:02:59.9]} 1... c6 {[%clk 0:03:01.2]} 2. Nf3 {[%clk 0:02:59.8]}
2... d5 {[%clk 0:03:02.7]} 3. Nc3 {[%clk 0:03:01.2]} 3... dxe4 {[%clk
0:03:03.1]} 4. Nxe4 {[%clk 0:03:01.8]} 4... Nf6 {[%clk 0:03:04.7]} 5. Nxf6+
{[%clk 0:03:03.1]} 5... exf6 {[%clk 0:03:05.9]} 6. d4 {[%clk 0:03:04.6]} 6...
Bd6 {[%clk 0:03:03.2]} 7. Be2 {[%clk 0:03:05.8]} 7... O-O {[%clk 0:03:03.9]} 8.
O-O {[%clk 0:03:06.8]} 8... Re8 {[%clk 0:03:03.4]} 9. b3 {[%clk 0:03:03.3]} 9...
Nd7 {[%clk 0:03:04.4]} 10. Bb2 {[%clk 0:03:03.6]} 10... Nf8 {[%clk 0:03:05.1]}
11. c4 {[%clk 0:03:03.6]} 11... Ng6 {[%clk 0:03:06.1]} 12. Re1 {[%clk
0:03:01.6]} 12... Nf4 {[%clk 0:02:57.4]} 13. Bf1 {[%clk 0:03:01.7]} 13... Bg4
{[%clk 0:02:57.7]} 14. Rxe8+ {[%clk 0:02:58.7]} 14... Qxe8 {[%clk 0:02:57.9]}
15. h3 {[%clk 0:02:59.9]} 15... Bh5 {[%clk 0:02:57.8]} 16. Qe1 {[%clk
0:02:44.4]} 16... Nxh3+ {[%clk 0:02:52.4]} 17. gxh3 {[%clk 0:02:41.2]} 17...
Bxf3 {[%clk 0:02:52.1]} 18. Qxe8+ {[%clk 0:02:30.9]} 18... Rxe8 {[%clk 0:02:52]}
19. Bd3 {[%clk 0:02:32.3]} 19... g6 {[%clk 0:02:47.2]} 20. Bc3 {[%clk
0:02:07.9]} 20... f5 {[%clk 0:02:29.4]} 21. Kf1 {[%clk 0:02:04.9]} 21... Bf8
{[%clk 0:02:10.9]} 22. Re1 {[%clk 0:02:01.2]} 22... Rd8 {[%clk 0:02:11.8]} 23.
Re3 {[%clk 0:01:58.4]} 23... Bh5 {[%clk 0:02:12.7]} 24. Be2 {[%clk 0:01:56.5]}
24... Bxe2+ {[%clk 0:02:12]} 25. Kxe2 {[%clk 0:01:58.1]} 25... Bg7 {[%clk
0:02:13.3]} 26. Re7 {[%clk 0:01:55.2]} 26... b6 {[%clk 0:02:03.9]} 27. Rxa7
{[%clk 0:01:52.8]} 27... c5 {[%clk 0:02:04.5]} 28. Rb7 {[%clk 0:01:51.2]} 28...
cxd4 {[%clk 0:02:05.4]} 29. Bb4 {[%clk 0:01:49.5]} 29... d3+ {[%clk 0:02:06.3]}
30. Kd2 {[%clk 0:01:47.4]} 30... Bh6+ {[%clk 0:02:06.5]} 31. Kd1 {[%clk
0:01:46.5]} 31... d2 {[%clk 0:02:01.6]} 32. Rxb6 {[%clk 0:01:45.2]} 32... Re8
{[%clk 0:02:02.6]} 33. Kc2 {[%clk 0:01:41.1]} 33... Bf4 {[%clk 0:01:32.6]} 34.
Rb5 {[%clk 0:01:34.5]} 34... Re2 {[%clk 0:01:29]} 35. Rd5 {[%clk 0:01:23.1]}
35... d1=Q+ {[%clk 0:01:26.7]} 36. Kxd1 {[%clk 0:01:22.5]} 36... Rxa2 {[%clk
0:01:28.2]} 37. c5 {[%clk 0:01:19.2]} 37... Rb2 {[%clk 0:01:21.7]} 38. Rd8+
{[%clk 0:01:16.3]} 38... Kg7 {[%clk 0:01:22.3]} 39. Bc3+ {[%clk 0:01:16.7]} 1-0

[Event "*** Titled Tuesday Blitz"]
[Site "Chess.com"]
[Date "2018.09.04"]
[Round "4"]
[White "ahmadzada13"]
[Black "jncool68"]
[Result "1-0"]
[WhiteElo "2628"]
[BlackElo "2498"]
[TimeControl "180+2"]
[EndTime "14:25:10 PDT"]
[Termination "ahmadzada13 won by resignation"]

1. e4 {[%clk 0:03:01.9]} 1... e5 {[%clk 0:02:59.9]} 2. Nf3 {[%clk 0:03:02]} 2...
Nc6 {[%clk 0:03:00.4]} 3. Bb5 {[%clk 0:03:02.9]} 3... a6 {[%clk 0:03:00]} 4. Ba4
{[%clk 0:03:01.5]} 4... Nf6 {[%clk 0:02:59.1]} 5. O-O {[%clk 0:03:01.7]} 5...
Be7 {[%clk 0:02:47.3]} 6. Bxc6 {[%clk 0:02:57.4]} 6... dxc6 {[%clk 0:02:46.6]}
7. d3 {[%clk 0:02:58.9]} 7... Nd7 {[%clk 0:02:39.2]} 8. b3 {[%clk 0:02:59.8]}
8... O-O {[%clk 0:02:38.6]} 9. Bb2 {[%clk 0:02:58.7]} 9... f6 {[%clk 0:02:38.5]}
10. Nbd2 {[%clk 0:02:52.8]} 10... Re8 {[%clk 0:02:35.2]} 11. Nc4 {[%clk
0:02:50.9]} 11... Nf8 {[%clk 0:02:36]} 12. Ne3 {[%clk 0:02:50]} 12... Be6 {[%clk
0:02:34.7]} 13. d4 {[%clk 0:02:48.1]} 13... exd4 {[%clk 0:02:33.4]} 14. Nxd4
{[%clk 0:02:49.1]} 14... Bf7 {[%clk 0:02:34]} 15. Qg4 {[%clk 0:02:45.3]} 15...
Ng6 {[%clk 0:02:33.4]} 16. Nef5 {[%clk 0:02:40.8]} 16... Bf8 {[%clk 0:02:30.3]}
17. Rad1 {[%clk 0:02:31.6]} 17... Qc8 {[%clk 0:02:29.5]} 18. h4 {[%clk
0:02:28.3]} 18... c5 {[%clk 0:02:30.5]} 19. Ne2 {[%clk 0:02:19.6]} 19... Kh8
{[%clk 0:02:30.1]} 20. Neg3 {[%clk 0:02:16]} 20... Ne5 {[%clk 0:02:24.7]} 21.
Bxe5 {[%clk 0:02:11.9]} 21... Rxe5 {[%clk 0:02:24.7]} 22. f4 {[%clk 0:02:09]}
22... Re8 {[%clk 0:02:20.5]} 23. h5 {[%clk 0:02:09.4]} 23... Qe6 {[%clk
0:02:14.3]} 24. Rf2 {[%clk 0:01:56.7]} 24... Rad8 {[%clk 0:02:12.2]} 25. Rfd2
{[%clk 0:01:57.6]} 25... Rxd2 {[%clk 0:02:12.4]} 26. Rxd2 {[%clk 0:01:58.6]}
26... c4 {[%clk 0:02:13.6]} 27. Kh2 {[%clk 0:01:56.4]} 27... cxb3 {[%clk
0:02:13.6]} 28. cxb3 {[%clk 0:01:56.6]} 28... c5 {[%clk 0:02:09.5]} 29. Qd1
{[%clk 0:01:52.7]} 29... b5 {[%clk 0:02:00.5]} 30. Rd7 {[%clk 0:01:51.2]} 30...
c4 {[%clk 0:01:57.4]} 31. Ra7 {[%clk 0:01:38]} 31... c3 {[%clk 0:01:55.5]} 32.
Nd4 {[%clk 0:01:35.2]} 32... Qd6 {[%clk 0:01:39.1]} 33. Rxf7 {[%clk 0:01:31.5]}
33... Qxf4 {[%clk 0:01:40.1]} 34. Nf5 {[%clk 0:01:28.9]} 34... g6 {[%clk
0:01:24.2]} 35. hxg6 {[%clk 0:01:22.2]} 35... hxg6 {[%clk 0:01:24.8]} 36. Qd4
{[%clk 0:01:22.9]} 36... Qe5 {[%clk 0:01:23.6]} 37. Qd7 {[%clk 0:00:44.9]} 37...
gxf5 {[%clk 0:01:23.8]} 38. Rh7+ {[%clk 0:00:42.8]} 1-0

[Event "*** Titled Tuesday Blitz"]
[Site "Chess.com"]
[Date "2018.09.04"]
[Round "4"]
[White "Ksenia_Legenko"]
[Black "chesstatour"]
[Result "1-0"]
[WhiteElo "2060"]
[BlackElo "1987"]
[TimeControl "180+2"]
[EndTime "14:25:14 PDT"]
[Termination "Ksenia_Legenko won by resignation"]

1. d4 {[%clk 0:03:01.9]} 1... Nf6 {[%clk 0:02:55]} 2. c4 {[%clk 0:03:02.4]} 2...
e6 {[%clk 0:02:56.2]} 3. g3 {[%clk 0:03:02.9]} 3... Bb4+ {[%clk 0:02:55.4]} 4.
Bd2 {[%clk 0:03:03.7]} 4... Bxd2+ {[%clk 0:02:54.8]} 5. Nxd2 {[%clk 0:03:04.1]}
5... O-O {[%clk 0:02:56.7]} 6. Bg2 {[%clk 0:03:05.1]} 6... d5 {[%clk 0:02:58.6]}
7. Ngf3 {[%clk 0:03:05.8]} 7... c6 {[%clk 0:02:59.9]} 8. O-O {[%clk 0:03:06.7]}
8... Nbd7 {[%clk 0:03:01]} 9. Qc2 {[%clk 0:03:07.8]} 9... Qe7 {[%clk 0:02:56]}
10. e4 {[%clk 0:03:07.9]} 10... dxe4 {[%clk 0:02:55.4]} 11. Nxe4 {[%clk
0:03:08.7]} 11... Nxe4 {[%clk 0:02:56.4]} 12. Qxe4 {[%clk 0:03:09.3]} 12... c5
{[%clk 0:02:42.7]} 13. d5 {[%clk 0:03:05.1]} 13... Nf6 {[%clk 0:02:42.9]} 14.
Qe2 {[%clk 0:02:58.1]} 14... Re8 {[%clk 0:02:34.6]} 15. Rfe1 {[%clk 0:02:57.7]}
15... Qc7 {[%clk 0:02:19.1]} 16. Rad1 {[%clk 0:02:53.1]} 16... Bd7 {[%clk
0:02:19.7]} 17. d6 {[%clk 0:02:47.6]} 17... Qb6 {[%clk 0:02:20.2]} 18. Ne5
{[%clk 0:02:46.9]} 18... Rad8 {[%clk 0:02:19.4]} 19. Rd2 {[%clk 0:02:17.4]}
19... Bc6 {[%clk 0:02:03]} 20. Bxc6 {[%clk 0:02:04.4]} 20... bxc6 {[%clk
0:02:04.9]} 21. Qf3 {[%clk 0:02:05.2]} 21... Qa5 {[%clk 0:01:34.3]} 22. Red1
{[%clk 0:01:56]} 22... Qxa2 {[%clk 0:01:05.3]} 23. d7 {[%clk 0:01:47.2]} 23...
Rf8 {[%clk 0:00:23.1]} 24. Qxc6 {[%clk 0:01:43.9]} 24... Qb3 {[%clk 0:00:10.9]}
25. Qxc5 {[%clk 0:01:41.7]} 25... g6 {[%clk 0:00:07.4]} 26. Qxa7 {[%clk
0:01:37.4]} 26... Kg7 {[%clk 0:00:07.3]} 27. Qd4 {[%clk 0:01:35.5]} 27... Qb7
{[%clk 0:00:05.6]} 28. Ng4 {[%clk 0:01:32.2]} 28... e5 {[%clk 0:00:04.7]} 29.
Qxe5 {[%clk 0:01:32.5]} 29... Qb6 {[%clk 0:00:04.7]} 30. Rd6 {[%clk 0:01:29.6]}
1-0

[Event "*** Titled Tuesday Blitz"]
[Site "Chess.com"]
[Date "2018.09.04"]
[Round "4"]
[White "Cryptochess"]
[Black "jefferyx"]
[Result "0-1"]
[WhiteElo "2514"]
[BlackElo "2769"]
[TimeControl "180+2"]
[EndTime "14:25:17 PDT"]
[Termination "jefferyx won by resignation"]

1. e4 {[%clk 0:03:01.9]} 1... e5 {[%clk 0:03:01.3]} 2. Nf3 {[%clk 0:03:02.6]}
2... Nc6 {[%clk 0:03:02.7]} 3. Bc4 {[%clk 0:03:04.3]} 3... Bc5 {[%clk 0:03:04]}
4. c3 {[%clk 0:03:05.2]} 4... Nf6 {[%clk 0:03:05.1]} 5. d3 {[%clk 0:03:06.7]}
5... O-O {[%clk 0:03:01.1]} 6. O-O {[%clk 0:03:08]} 6... d6 {[%clk 0:03:00.5]}
7. Bb3 {[%clk 0:03:04.5]} 7... h6 {[%clk 0:02:59.3]} 8. Nbd2 {[%clk 0:03:02.9]}
8... a5 {[%clk 0:02:59.6]} 9. h3 {[%clk 0:03:01.6]} 9... Bd7 {[%clk 0:03:00.6]}
10. Re1 {[%clk 0:03:01.8]} 10... a4 {[%clk 0:03:01.3]} 11. Bc2 {[%clk
0:02:58.6]} 11... b5 {[%clk 0:03:02.4]} 12. Nf1 {[%clk 0:02:57.7]} 12... Qb8
{[%clk 0:03:01.8]} 13. d4 {[%clk 0:02:46.8]} 13... Bb6 {[%clk 0:02:48.8]} 14.
Ng3 {[%clk 0:02:47]} 14... Re8 {[%clk 0:02:48.3]} 15. Be3 {[%clk 0:02:41.7]}
15... Qa7 {[%clk 0:02:48]} 16. Qd3 {[%clk 0:01:32.8]} 16... exd4 {[%clk
0:02:46.1]} 17. Nxd4 {[%clk 0:01:34.4]} 17... Ne5 {[%clk 0:02:39.3]} 18. Qe2
{[%clk 0:01:14.4]} 18... Nc4 {[%clk 0:02:35.8]} 19. Ndf5 {[%clk 0:01:09.8]}
19... Bxf5 {[%clk 0:02:23.2]} 20. Nxf5 {[%clk 0:01:08.5]} 20... Nxe3 {[%clk
0:02:19.3]} 21. fxe3 {[%clk 0:01:09.1]} 21... Re5 {[%clk 0:02:02.9]} 22. Qf3
{[%clk 0:01:06]} 22... Kh7 {[%clk 0:01:51.6]} 23. Rf1 {[%clk 0:01:04.2]} 23...
Rg8 {[%clk 0:01:51.4]} 24. Nxg7 {[%clk 0:00:51.1]} 24... Bxe3+ {[%clk
0:01:51.2]} 25. Kh1 {[%clk 0:00:52]} 25... Rxg7 {[%clk 0:01:49.3]} 26. Qxf6
{[%clk 0:00:53.4]} 26... Qc5 {[%clk 0:01:49.8]} 27. Rad1 {[%clk 0:00:49.1]}
27... Qc4 {[%clk 0:01:37.7]} 28. Rd5 {[%clk 0:00:39.4]} 28... Qe2 {[%clk
0:01:38.5]} 29. Qf3 {[%clk 0:00:30.6]} 29... Qxc2 {[%clk 0:01:39.1]} 30. Rxe5
{[%clk 0:00:23.7]} 30... dxe5 {[%clk 0:01:41]} 31. Qf5+ {[%clk 0:00:20.4]} 31...
Kh8 {[%clk 0:01:41.8]} 32. g4 {[%clk 0:00:22.1]} 32... Bf4 {[%clk 0:01:39]} 33.
Rxf4 {[%clk 0:00:16.7]} 33... exf4 {[%clk 0:01:40.9]} 34. Qxf4 {[%clk
0:00:17.3]} 34... Qb1+ {[%clk 0:01:39.1]} 35. Kg2 {[%clk 0:00:18]} 35... Qxb2+
{[%clk 0:01:40.3]} 36. Kh1 {[%clk 0:00:19.6]} 36... Qa1+ {[%clk 0:01:40.8]} 37.
Kg2 {[%clk 0:00:20.8]} 37... Qxa2+ {[%clk 0:01:37.1]} 38. Kh1 {[%clk 0:00:17.4]}
38... Qe6 {[%clk 0:01:39]} 39. e5 {[%clk 0:00:18.8]} 39... a3 {[%clk 0:01:39.3]}
0-1

[Event "*** Titled Tuesday Blitz"]
[Site "Chess.com"]
[Date "2018.09.04"]
[Round "4"]
[White "SARGISMV"]
[Black "Yurovskykh_Oleksandr"]
[Result "1-0"]
[WhiteElo "2494"]
[BlackElo "2442"]
[TimeControl "180+2"]
[EndTime "14:25:24 PDT"]
[Termination "SARGISMV won by resignation"]

1. d4 {[%clk 0:02:59.6]} 1... d5 {[%clk 0:03:00.5]} 2. c4 {[%clk 0:03:00.3]}
2... c6 {[%clk 0:03:01.6]} 3. Nf3 {[%clk 0:03:00.5]} 3... Nf6 {[%clk 0:03:02.4]}
4. e3 {[%clk 0:03:01.7]} 4... Bg4 {[%clk 0:03:02.2]} 5. h3 {[%clk 0:03:01.3]}
5... Bh5 {[%clk 0:03:03]} 6. g4 {[%clk 0:03:02.8]} 6... Bg6 {[%clk 0:03:03.9]}
7. Ne5 {[%clk 0:03:04.3]} 7... e6 {[%clk 0:03:01.4]} 8. Nd2 {[%clk 0:03:01.9]}
8... Nbd7 {[%clk 0:02:51.2]} 9. Nxg6 {[%clk 0:03:01]} 9... hxg6 {[%clk
0:02:51.8]} 10. Bg2 {[%clk 0:03:02.9]} 10... Bd6 {[%clk 0:02:50.4]} 11. O-O
{[%clk 0:03:02.3]} 11... O-O {[%clk 0:02:46.4]} 12. Re1 {[%clk 0:02:52.3]} 12...
Re8 {[%clk 0:02:16.7]} 13. g5 {[%clk 0:02:39.3]} 13... Nh7 {[%clk 0:02:11.3]}
14. f4 {[%clk 0:02:36.2]} 14... f5 {[%clk 0:01:46.5]} 15. c5 {[%clk 0:02:28.2]}
15... Bc7 {[%clk 0:01:43.8]} 16. b4 {[%clk 0:02:27.5]} 16... a5 {[%clk
0:01:32.5]} 17. bxa5 {[%clk 0:02:23.5]} 17... Bxa5 {[%clk 0:01:29.6]} 18. Qc2
{[%clk 0:02:10.5]} 18... Qc7 {[%clk 0:01:24]} 19. Re2 {[%clk 0:02:09]} 19...
Bxd2 {[%clk 0:01:14.2]} 20. Bxd2 {[%clk 0:02:04.5]} 20... Ra7 {[%clk 0:01:15.6]}
21. a4 {[%clk 0:02:03.7]} 21... Rea8 {[%clk 0:01:16.6]} 22. a5 {[%clk
0:02:03.6]} 22... Nhf8 {[%clk 0:01:07.9]} 23. Rb1 {[%clk 0:02:03.2]} 23... Kf7
{[%clk 0:01:08.2]} 24. Be1 {[%clk 0:02:03.8]} 24... Ke7 {[%clk 0:01:06.7]} 25.
Rb3 {[%clk 0:02:01.2]} 25... Kd8 {[%clk 0:00:45.4]} 26. Qb1 {[%clk 0:02:01.8]}
26... Kc8 {[%clk 0:00:46.7]} 27. Reb2 {[%clk 0:02:02.6]} 27... Nb8 {[%clk
0:00:46.3]} 28. Bf1 {[%clk 0:01:57.7]} 28... Nfd7 {[%clk 0:00:42.9]} 29. Bd2
{[%clk 0:01:49.1]} 29... Na6 {[%clk 0:00:43.2]} 30. Qe1 {[%clk 0:01:41.3]} 30...
Qd8 {[%clk 0:00:37]} 31. Qh4 {[%clk 0:01:38.7]} 31... Kc7 {[%clk 0:00:35.8]} 32.
Qh7 {[%clk 0:01:35.2]} 32... Qg8 {[%clk 0:00:20.1]} 33. Qxg6 {[%clk 0:01:26.3]}
33... Nf8 {[%clk 0:00:20]} 34. Qh5 {[%clk 0:01:26.6]} 34... Qh7 {[%clk
0:00:21.5]} 35. Qxh7 {[%clk 0:01:26]} 35... Nd7 {[%clk 0:00:23.1]} 36. Qxg7
{[%clk 0:01:24.9]} 1-0

[Event "*** Titled Tuesday Blitz"]
[Site "Chess.com"]
[Date "2018.09.04"]
[Round "4"]
[White "martinmartinez95"]
[Black "ZatonskihAnna"]
[Result "0-1"]
[WhiteElo "2433"]
[BlackElo "2424"]
[TimeControl "180+2"]
[EndTime "14:25:26 PDT"]
[Termination "ZatonskihAnna won on time"]

1. d4 {[%clk 0:03:01.2]} 1... d5 {[%clk 0:03:01]} 2. c4 {[%clk 0:03:00.4]} 2...
e6 {[%clk 0:03:01.9]} 3. Nc3 {[%clk 0:02:59.8]} 3... Nf6 {[%clk 0:03:03.3]} 4.
Nf3 {[%clk 0:02:58.7]} 4... Be7 {[%clk 0:03:03.7]} 5. Bg5 {[%clk 0:02:56.3]}
5... O-O {[%clk 0:03:04.2]} 6. e3 {[%clk 0:02:56.4]} 6... h6 {[%clk 0:03:05.3]}
7. Bxf6 {[%clk 0:02:48.1]} 7... Bxf6 {[%clk 0:03:07.2]} 8. Rc1 {[%clk
0:02:46.3]} 8... c6 {[%clk 0:03:06.5]} 9. Be2 {[%clk 0:02:45.4]} 9... Nd7 {[%clk
0:03:07.2]} 10. O-O {[%clk 0:02:46.3]} 10... dxc4 {[%clk 0:03:08]} 11. Bxc4
{[%clk 0:02:46.4]} 11... e5 {[%clk 0:03:09.4]} 12. d5 {[%clk 0:02:29.6]} 12...
Nb6 {[%clk 0:03:09]} 13. Bb3 {[%clk 0:02:30.5]} 13... e4 {[%clk 0:02:58.6]} 14.
Nxe4 {[%clk 0:02:16.6]} 14... Bxb2 {[%clk 0:02:59]} 15. Rc5 {[%clk 0:01:22.4]}
15... Qe7 {[%clk 0:02:18.3]} 16. Nfd2 {[%clk 0:00:39.6]} 16... cxd5 {[%clk
0:02:07.1]} 17. Bxd5 {[%clk 0:00:30.4]} 17... Ba3 {[%clk 0:01:56.6]} 18. Rb5
{[%clk 0:00:31]} 18... Bd7 {[%clk 0:01:52.8]} 19. Rxb6 {[%clk 0:00:30.3]} 19...
axb6 {[%clk 0:01:52.2]} 20. Bxb7 {[%clk 0:00:31.6]} 20... Ra7 {[%clk 0:01:40.4]}
21. Bd5 {[%clk 0:00:31.4]} 21... Rd8 {[%clk 0:01:40.8]} 22. Qf3 {[%clk 0:00:23]}
22... Bb5 {[%clk 0:01:17.9]} 23. Bc4 {[%clk 0:00:20.8]} 23... Bc6 {[%clk
0:01:17.7]} 24. Rb1 {[%clk 0:00:09.3]} 24... Rxd2 {[%clk 0:01:10.9]} 25. Rxb6
{[%clk 0:00:09.1]} 25... Bxe4 {[%clk 0:01:03.8]} 26. Bxf7+ {[%clk 0:00:02.9]}
26... Kh7 {[%clk 0:01:00.9]} 0-1